Cogmind - Beta 13 @@@ ROGUE MODE // 2024.03.31 @ 22:01:02 Player: lazy_engineer Result: Destroyed by G-34 Mercenary with Small Laser Performance ------------- Evolutions (0) 0 Regions Visited (1) 200 Robots Destroyed (6) 30 Value Destroyed (230) 230 Prototype IDs (0) 0 Alien Tech Used (0) 0 Bonus (0) 0 TOTAL SCORE: 460 Bonus ------- None Cogmind --------- Core Integrity 0/250 Matter 300/300 Energy 156/160 System Corruption 0% Temperature Warm (123) Movement Walking (260) Ox2 Location -10/Materials Parts ------- > --- POWER (1) -------- Light Nuclear Core > --- PROPULSION (2) --- Aluminum Leg > --- UTILITY (2) ------ Large Storage Unit > --- WEAPON (2) ------- Medium Laser Small Laser > --- INVENTORY (15) --- (None) Peak State ------------ > --- POWER ------------ Light Nuclear Core > --- PROPULSION ------- Aluminum Leg > --- UTILITY ---------- Large Storage Unit > --- WEAPON ----------- Medium Laser Small Laser > --- INVENTORY -------- (None) [Rating: 7] Favorites ----------- Power Light Ion Engine Engine Light Ion Engine Power Core Light Nuclear Core Propulsion Aluminum Leg Leg Aluminum Leg Utility Large Storage Unit Storage Large Storage Unit Weapon Small Laser Energy Gun Small Laser Build | -11 -10 ------- Run | Yrd Mat Slots Evolved . | . . Power . | . . Propulsion . | . . Utility . | . . Weapon . | . . Parts Attached 7 | 5 2 Power 2 | 1 1 Engine 1 | 1 . Core 1 | . 1 Reactor . | . . Propulsion 2 | 2 . Treads . | . . Leg 2 | 2 . Wheel . | . . Hover . | . . Flight . | . . Utility 1 | . 1 Device . | . . Storage 1 | . 1 Processor . | . . Hackware . | . . Protection . | . . Artifact . | . . Weapon 2 | 2 . Energy Gun 2 | 2 . Energy Cannon . | . . Ballistic Gun . | . . Ballistic Cannon . | . . Launcher . | . . Special Weapon . | . . Impact Weapon . | . . Slashing Weapon . | . . Piercing Weapon . | . . Special Melee Weapon . | . . Unidentified Prototypes . | . . Parts Lost 2 | . 2 Power 1 | . 1 Propulsion 1 | . 1 Utility . | . . Weapon . | . . Highest Loss Streak 2 | . 2 To Critical Strikes . | . . Average Slot Usage (%) 78 | . 78 Engine 9 | . 9 Core 2 | . 2 Leg 23 | . 23 Storage 13 | . 13 Energy Gun 28 | . 28 Naked Turns . | . . Heaviest Build 28 | 6 28 Greatest Support 20 | 20 20 Greatest Overweight (x) 2 | . 2 Average Overweight (x) . | . 1 Largest Inventory Capacity 15 | 5 15 Average Capacity 11 | 5 14 Most Carried 2 | 2 1 Average Carried . | . . Final Capacity 15 | 5 15 Final Carried . | . . Class Distribution -------------------- 100% | Mutant Dominant Class ---------------- Mutant | -10/Materials Resources | -11 -10 ----------- Run | Yrd Mat Matter Collected 260 | 250 10 Remotely . | . . Salvage Created 297 | 49 248 Parts 11 | 1 10 Haulers Intercepted . | . . Recyclers Shooed . | . . Parts Field Recycled . | . . Retrieved Matter . | . . Parts Self-Destructed . | . . Prevented . | . . Kills | -11 -10 ------- Run | Yrd Mat Combat Hostiles Destroyed 6 | 1 5 Guns 5 | 1 4 Classes Destroyed 1 | 1 . Grunt 6 | 1 5 Best Kill Streak 3 | 1 3 Combat Bots Only 3 | 1 3 Max Kills in Single Turn 1 | 1 1 Gunslinging . | . . Exploded . | . . Melee . | . . Uniques/NPCs Destroyed . | . . Combat | -11 -10 -------- Run | Yrd Mat Hostile Shots Fired 64 | 6 58 Missed 19 | 2 17 Damage Taken 592 | 43 549 Core 254 | 22 232 Absorbed by Shields . | . . Core Remaining (%) 91 | 91 . Volleys Fired 39 | 9 30 Largest 2 | 2 2 Hottest 90 | 90 90 Shots Fired 78 | 18 60 Gun 78 | 18 60 Cannon . | . . Launcher . | . . Special . | . . Kinetic . | . . Thermal 78 | 18 60 Explosive . | . . Electromagnetic . | . . Robot Hit Streak 9 | 9 6 Robot Miss Streak 4 | 3 4 Penetration Max . | . . Secondary Targets . | . . Shots Hit Robots 51 | 13 38 Core Hits 17 | 2 15 Critical Kills . | . . Critical Parts Destroyed . | . . Critical Strikes 2 | 1 1 Burn 2 | 1 1 Melee Attacks . | . . Impact . | . . Slashing . | . . Piercing . | . . Sneak Attacks . | . . Combat Hostiles . | . . Follow-up Attacks . | . . Damage Inflicted 620 | 155 465 Guns 620 | 155 465 Cannons . | . . Explosions . | . . Melee . | . . Ramming . | . . Kinetic . | . . Thermal 620 | 155 465 Explosive . | . . Electromagnetic . | . . Impact . | . . Slashing . | . . Piercing . | . . Highest Corruption . | . . Average Corruption . | . . Corruption Purged . | . . Corruption Blocked . | . . Overload Shots . | . . Overflow Damage . | . . Projectiles . | . . Explosions . | . . Melee . | . . Knockbacks . | . . Impact . | . . Kinetic . | . . Secondary . | . . Self-Inflicted Damage . | . . Shots . | . . Rammed . | . . Targets Rammed . | . . Kicked . | . . Crushed . | . . Highest Temperature 333 | 234 333 Average Temperature 130 | 126 131 Received Heat Transfer 387 | 24 363 Effects 1 | . 1 Energy Bleed 1 | . 1 Siege Activations . | . . Robots Corrupted . | . . Combat Hostiles . | . . Parts Fried . | . . Impact Corruptions . | . . Robots Melted 1 | . 1 Combat Hostiles 1 | . 1 Parts Melted 3 | . 3 Heat Transferred 1785 | 495 1290 Parts Sabotaged . | . . Parts Stolen . | . . Parts Stripped . | . . Power Chain Reactions . | . . Alert | -11 -10 ------- Run | Yrd Mat Peak Influence 153 | 21 153 Initial 13 | . 13 Average 62 | 6 91 Maximum Alert Level . | . . Low Security (%) 100 | 100 100 Level 1 . | . . Level 2 . | . . Level 3 . | . . Level 4 . | . . Level 5 . | . . High Security . | . . Max Security . | . . Squads Dispatched 1 | . 1 Investigation . | . . Extermination . | . . Reinforcement 1 | . 1 Assault . | . . Garrison . | . . Intercept . | . . Searches Triggered . | . . Construction Impeded . | . . Haulers Reinforced . | . . Active Scanning Responses . | . . Cargo Convoy Interrupts . | . . Stealth | -11 -10 --------- Run | Yrd Mat Distress Signals . | . . Communications Jammed . | . . Distress Signals . | . . Times Spotted 11 | 1 10 Peak Tracking Total 5 | 1 5 Tactical Retreats . | . . Traps | -11 -10 ------- Run | Yrd Mat Traps Triggered . | . . Indirectly . | . . Trap Hack Attempts . | . . Triggered . | . . Disarmed . | . . Reprogrammed . | . . Reused . | . . Traps Extracted . | . . Installed . | . . Triggered . | . . Machines | -11 -10 ---------- Run | Yrd Mat Machines Disabled . | . . Max in Single Turn . | . . Machines Repaired . | . . Machines Dismantled . | . . Machines Sabotaged . | . . Overloaded Fab Kills . | . . Hacking | -11 -10 --------- Run | Yrd Mat Machines Accessed . | . . Terminals . | . . Fabricators . | . . Repair Stations . | . . Recycling Units . | . . Scanalyzers . | . . Garrison Access . | . . Total Hacks . | . . Successful . | . . Failed . | . . Catastrophic . | . . Database Lockouts . | . . Manual . | . . Terminals . | . . Fabricators . | . . Repair Stations . | . . Recycling Units . | . . Scanalyzers . | . . Garrison Access . | . . Terminal Hacks . | . . Fabricator Hacks . | . . Repair Station Hacks . | . . Recycling Unit Hacks . | . . Scanalyzer . | . . Garrison Access Hacks . | . . Unauthorized Hacks . | . . Terminals . | . . Fabricators . | . . Repair Stations . | . . Recycling Units . | . . Scanalyzers . | . . Garrison Access . | . . Data Cores Recovered . | . . Used . | . . Hacking Detections . | . . Full Trace Events . | . . Feedback Events . | . . Feedback Blocked . | . . Robot Schematics Acquired . | . . Robots Built . | . . Authchips . | . . Time . | . . Total Robot Build Rating . | . . Part Schematics Acquired . | . . Parts Built . | . . Authchips . | . . Time . | . . Total Part Build Rating . | . . Parts Repaired . | . . Time . | . . Parts Recycled . | . . Recycled Matter . | . . Retrieved Matter . | . . Retrieved Components . | . . Parts Scanalyzed . | . . Part Schematics Acquired . | . . Parts Damaged . | . . Bothacking | -11 -10 ------------ Run | Yrd Mat Used RIF Installer . | . . Robots Hacked . | . . Non-combat . | . . Combat . | . . Robot Hacks Applied . | . . Relay Couplers Released . | . . Fabnet Peak Effective % . | . . Robots Rewired . | . . Allies Hacked . | . . Hacks Repelled . | . . Allies | -11 -10 -------- Run | Yrd Mat Total Allies . | . . Largest Group . | . . Highest-Rated Group . | . . Highest-Rated Ally . | . . Total Orders . | . . Ally Attacks . | . . Total Damage . | . . Kills . | . . Allies Corrupted . | . . Allies Melted . | . . Intel | -11 -10 ------- Run | Yrd Mat Robot Analysis Total . | . . Derelict Logs Recovered . | . . Drone Launches . | . . Drone Recoveries . | . . Exploration | -11 -10 ------------- Run | Yrd Mat Turns Passed 308 | 103 205 Spaces Moved 118 | 64 54 Core 15 | 15 . Treads . | . . Legs 103 | 49 54 Wheels . | . . Hover . | . . Flight . | . . Fastest Speed 50 | 50 120 Average Speed 149 | 103 204 Slowest Speed 260 | 120 260 Overloaded Moves . | . . Propulsion Burnouts . | . . Robots Hopped . | . . Cave-ins Triggered . | . . Exploration Rate (%) 11 | 5 18 Regions Visited 1 Branch Regions . Pre-discovered Areas . | . . Known Exits Taken . | . . Unknown Exits Taken 1 | 1 . Scrap Searched . | . . Spaces Dug . | . . Terrain Destroyed . | . . Melee . | . . Projectile . | . . AOE . | . . Terrain Rammed . | . . Walls Destroyed . | . . Machines Disabled . | . . Actions | -11 -10 --------- Run | Yrd Mat Total 172 | 82 90 Wait 2 | . 2 Move 117 | 63 54 Hop . | . . Pick Up 7 | 5 2 Fast Attach . | . . Attach 7 | 5 2 Detach . | . . Swap . | . . Drop . | . . Fire 39 | 9 30 Melee . | . . Ram . | . . Kick . | . . Crush . | . . Escape Stasis . | . . Rewire . | . . Trap . | . . Miscellaneous . | . . Route ------- -11/Scrapyard -10/Materials History --------- Turn | Location | Event 2 | -11/Scrapyard | Met Revision 17 57 | -11/Scrapyard | Discovered new exit (range 8) 104 | -11/Scrapyard | Entered Materials 215 | -10/Materials | Core integrity fell below 50% 243 | -10/Materials | Core integrity fell below 20% 302 | -10/Materials | Build established: Mutant 309 | -10/Materials | Destroyed by G-34 Mercenary with Small Laser Last Messages --------------- R-06 Scavenger collects Aluminum Leg. Processing Tank disabled. Lgt. Ion Engine destroyed. G-34 Mercenary destroyed. G-47 Trooper suffers critical hit (Burn). Aluminum Leg destroyed. Critical hit (Burn: +37). R-06 Scavenger collects Sml. Laser. G-47 Trooper overheating. G-47 Trooper heat damages Aluminum Leg. R-06 Scavenger collects Heat Sink. G-47 Trooper heat short circuits Aluminum Leg. G-47 Trooper critical meltdown. [Achievement: It's Just You] Imp. Heat Sink melted. R-06 Scavenger collects Particle Gun. R-06 Scavenger collects Aluminum Leg. Acquired Lgt. Nuclear Core. Acquired 10 matter. K-01 Serf collects debris. Map ----- +----------------------------------------------------+ | ???????????????????????????????????????????? | | ???????????????????????????????????????????? | | ???????????????????????????????????????????? | | ???????????????????????????????????????????? | | ???????????????????????????????????????????? | | ???????????????????????????????????????????? | | ???????????????????????????????????????????? | | ???????????????????????????????????????????? | | ???????????????????????????????????????????? | | ???????????????? ??????????????????????? | | ???????????????? ????????????????????? | | ???????????????? ! k ?????????????????? | | ???????????????? k ???????????????? | | ???????????????? %/ #??????????????? | | ???????????????? // #??????????????? | | ????????????????# r / #??????????????? | | ????????????????#g #??????????????? | | ????????????????# g ####???????????? | | ????????????????# ??????????? | | ????????????????# ??????????? | | ????????????????# ??????????? | | ????????????????# #??????????? | | ????????????????# #??????????? | | ????????????????# o #??????????? | | ????????????????# """ ?????????????? | | ????????#########+#@ """"??????????????? | | ????????# # """"??????????????? | | ????????# # """"" ????????????? | | ????????# # """ ????????????? | | ????????# +% ???????????? | | ????????# % # ????????????? | | ????????# """"" # ???????????? | | ????????#%%"""" # #??????????? | | ????????# """" # #??????????? | | ????????########+## r ???????????? | | ???????####T#### "T" ????????????? | | ???????# %""" ???????????? | | ???????# %* !! ???????????? | | ???????# !! ???????????? | | ???????# ############ ##"Y"####??????????? | | ???????# ####?????????#??????????????????? | | ???????# !##???????????????????????????? | | ???????# !#???????????????????????????? | | ???????# !#???????????????????????????? | | ???????# #???????????????????????????? | | ???????# !#???????????????????????????? | | ???????+ !##???????????????????????????? | | ???????# ####????????????????????????????? | | ???????# #???????????????????????????????? | | ???????# #???????????????????????????????? | +----------------------------------------------------+ Best States ------------- Heat Dissipation 25 Energy Generation 14 Energy Capacity 160 Matter Stores 300 Matter Capacity 300 Sight Range 16 Terrain Scan Density 10 Evasion (%) 55 Item Schematics ----------------- None Robot Schematics ------------------ None Fabricated ------------ Nothing Alien Tech Used ----------------- None Achievements -------------- It's Just You Challenges ------------ None Game ------ Seed OpticalDeepDisintegrator Manual? 0 Play Time 00:06:37 Cumulative 2.1 hours Start 2024.03.31 @ 21:57:00 End 2024.03.31 @ 22:01:02 Sessions 1 Manual Loads 0 Difficulty Rogue Special Mode None Game No. 3 Rogue 3 Adventurer 0 Explorer 0 Win Type - Total 0 Types 0/0/0/0/0/0/0/0/0 Lore% 3 Gallery% 4 Achievement% 5 Wizard Run 0 Options --------- Layout 1 ASCII 0 Keyboard 0 Movement Mouse Keybinds 0 Fullscreen 1 Font 32/SmallcapsGlow Map View 50x35 Zoom Use 0% Tactical HUD 0 Map Filters NONE Filters NONE Steam 1 RUN: 0514eb0f-b3dc-44ee-8080-fefeb73f6171